bitfinex/quotes_ETHUSD_20260305
["timestamp","ask_amount","ask_price","bid_price","bid_amount"]
[1772694857043,0.78722897,2129.2,2128.8,1.56482427]
[1772694858875,0.78722897,2129.2,2128.9,0.38699299]
[1772694858876,0.002,2129.2,2128.9,0.38699299]
[1772694859344,0.002,2129.2,2129.0,1.17426021]
[1772694860372,0.002,2129.2,2128.9,0.38699299]
[1772694860578,0.85981805,2129.2,2128.8,1.1743268]
[1772694860773,0.85981805,2129.2,2128.8,1.55793043]
[1772694861167,0.85981805,2129.2,2128.8,1.55893043]
[1772694861367,0.002,2129.0,2128.8,1.55893043]
[1772694863075,0.002,2129.0,2128.9,0.37837111]
[1772694863276,0.002,2129.2,2128.9,0.37837111]
[1772694863479,0.002,2129.2,2129.0,1.54803493]
[1772694864277,0.002,2129.2,2128.9,1.17427272]
[1772694867878,0.002,2129.2,2129.0,0.36288143]
[1772694868089,0.86248609,2129.2,2128.8,1.17533994]
[1772694868389,0.002,2129.2,2128.8,1.53569698]
[1772694869287,0.002,2129.2,2128.9,0.35784579]
[1772694870459,0.86248609,2129.2,2128.9,0.35784579]
[1772694870656,0.86248609,2129.2,2128.8,1.17533994]
[1772694870881,0.86248609,2129.2,2128.8,1.5306866]
[1772694872193,0.86048609,2129.1,2128.8,0.001]
[1772694873663,0.86048609,2129.1,2129.0,0.001]
[1772694873892,0.002,2129.2,2129.0,0.001]
[1772694874392,0.86248609,2129.2,2129.0,0.001]
[1772694875592,0.002,2129.2,2129.0,0.34402346]
[1772694876161,0.86248609,2129.2,2129.0,0.001]
[1772694877290,0.002,2129.2,2129.0,0.001]
[1772694878076,0.002,2129.2,2129.0,0.33916795]
[1772694879273,0.002,2129.5,2129.1,0.33135422]
[1772694879779,0.002,2129.5,2129.2,1.50550413]
[1772694880391,0.86048609,2129.4,2129.0,1.50425728]
[1772694880586,0.86048609,2129.4,2129.1,0.32904173]
[1772694882070,0.86048609,2129.4,2129.0,0.001]
[1772694882399,0.86048609,2129.4,2129.0,0.32383318]
[1772694884368,0.86048609,2129.4,2129.1,1.17420506]
[1772694885177,0.002,2129.2,2129.1,1.17420506]
[1772694885494,0.002,2129.2,2129.0,1.1752503]
[1772694886566,0.002,2129.2,2129.0,0.3087592]
[1772694886774,0.002,2129.4,2129.1,0.3057592]
[1772694887698,0.86248609,2129.4,2129.1,0.3057592]
[1772694888270,0.002,2129.4,2129.1,0.3057592]
[1772694888682,0.002,2129.4,2129.2,1.17414991]
[1772694889278,0.002,2129.4,2129.3,0.29294235]
[1772694889604,0.002,2129.5,2129.3,0.29294235]
[1772694891681,0.002,2129.5,2129.1,1.46002697]
[1772694891992,0.002,2129.5,2129.2,0.28582191]
[1772694893902,0.002,2129.5,2129.3,1.17409477]
[1772694897324,0.83608959,2129.5,2129.1,4.69667021]
[1772694897477,0.83608959,2129.5,2129.1,1.17420506]
[1772694897677,0.83608959,2129.5,2129.2,0.001]
[1772694897899,0.83608959,2129.3,2129.2,0.001]
[1772694902105,0.002,2129.3,2129.2,0.001]
[1772694903501,0.83608959,2129.3,2129.2,0.001]
[1772694905822,0.002,2129.3,2129.2,0.001]
[1772694905991,0.002,2129.5,2129.2,0.24426829]
[1772694906195,0.002,2129.8,2129.5,0.24126829]
[1772694907022,0.002,2130.1,2129.5,0.24126829]
[1772694907023,0.002,2130.1,2129.6,0.23802224]
[1772694907824,0.002,2130.1,2129.7,0.2357051]
[1772694908214,0.002,2130.1,2129.9,0.2357051]
[1772694908627,0.002,2130.3,2129.9,0.2357051]
[1772694908628,0.002,2130.3,2129.9,0.23337747]
[1772694909830,0.36747182,2130.2,2129.6,1.87077532]
[1772694910133,0.83408959,2130.1,2129.6,1.87077532]
[1772694910423,0.83408959,2130.1,2129.6,1.17390378]
[1772694911032,0.83608959,2130.1,2129.6,1.17390378]
[1772694914035,0.83608959,2130.3,2129.7,0.69942371]
[1772694914722,0.83408959,2130.2,2129.8,0.69663948]
[1772694915111,0.83408959,2130.2,2129.7,1.17383301]
[1772694917334,0.83408959,2130.1,2129.6,1.87053278]
[1772694917846,0.83408959,2130.1,2129.6,1.1738933]
[1772694919137,0.83408959,2130.1,2129.5,5.3788296]
[1772694919339,0.83408959,2130.1,2129.6,0.68202769]
[1772694921409,0.83408959,2130.1,2129.7,1.85057322]
[1772694922017,0.83408959,2130.1,2129.4,0.001]
[1772694922221,0.75555574,2130.0,2129.4,1.17500153]
[1772694922537,1.92915818,2130.2,2129.5,0.67405268]
[1772694923546,0.75555574,2130.1,2129.6,1.8453496]
[1772694923926,0.75555574,2130.1,2129.8,0.001]
[1772694924111,0.002,2130.0,2129.8,0.001]
[1772694927233,0.73638743,2130.0,2129.8,0.001]
[1772694931346,0.73438743,2129.9,2129.8,0.001]
[1772694934228,0.73438743,2129.8,2129.5,0.001]
[1772694934951,10.73438743,2129.8,2129.5,0.64460551]
[1772694935568,10.0,2129.8,2129.5,0.64460551]
[1772694935723,10.0,2129.8,2129.6,0.64118552]
[1772694937745,10.0,2129.8,2129.7,0.001]
[1772694938551,11.90820656,2129.8,2129.7,0.001]
[1772694938739,0.73438743,2129.7,2129.5,0.001]
[1772694939455,10.0,2129.8,2129.5,0.001]
[1772694940021,10.0,2129.8,2129.5,0.63251636]
[1772694941033,0.002,2130.0,2129.5,0.001]
[1772694942230,0.002,2130.0,2129.5,0.28956022]
[1772694942758,0.002,2130.0,2129.6,0.28856022]
[1772694943871,0.002,2130.0,2129.8,0.28507988]
[1772694944068,0.002,2130.2,2130.0,0.28507988]
[1772694945260,0.002,2130.2,2129.7,3.39892563]
[1772694945491,0.79751629,2130.2,2129.7,1.17387425]
[1772694946079,1.97114475,2130.2,2129.7,1.17387425]
[1772694946280,0.79751629,2130.2,2129.7,1.17387425]
[1772694946484,0.002,2130.3,2129.8,0.27479974]
[1772694948248,0.002,2130.3,2129.9,1.17376402]
[1772694948449,0.002,2130.3,2130.0,0.26805964]
[1772694949279,0.002,2130.3,2130.0,0.26905964]
[1772694949486,0.002,2130.1,2130.0,0.26905964]
[1772694949664,0.002,2130.3,2130.0,0.001]
[1772694949665,0.87942072,2130.3,2130.0,0.001]
[1772694951885,0.002,2130.3,2130.0,0.001]
[1772694952176,0.002,2130.3,2130.0,0.25801949]
[1772694952483,0.002,2130.3,2130.0,1.43168524]
[1772694952782,0.002,2130.3,2130.0,0.001]
[1772694952989,0.87942072,2130.3,2130.0,0.001]
[1772694953351,0.87942072,2130.3,2130.0,1.1747031]
[1772694953759,0.002,2130.3,2130.0,1.42514602]
[1772694954264,0.002,2130.3,2130.0,1.1747031]
[1772694955181,0.002,2130.3,2130.0,1.41861927]
[1772694955677,0.002,2130.3,2130.0,0.001]
[1772694956394,0.87942072,2130.3,2130.0,0.001]
[1772694956558,0.87742072,2130.1,2130.0,0.001]
[1772694957855,2.05300918,2130.3,2130.0,0.001]
[1772694958472,0.87742072,2130.2,2130.0,0.001]
[1772694958781,0.002,2130.3,2130.0,0.001]
[1772694959283,0.87942072,2130.3,2130.0,0.001]
[1772694961288,1.17557934,2130.3,2130.0,0.001]
[1772694961472,0.87742072,2130.2,2129.8,0.001]
[1772694962591,0.87742072,2130.2,2130.0,0.001]
[1772694962765,0.87942072,2130.1,2130.0,0.001]
[1772694964366,2.05307453,2130.1,2130.0,0.001]
[1772694964887,0.87742072,2130.0,2129.5,0.001]
[1772694965189,0.87742072,2129.8,2129.4,0.001]
[1772694965782,0.87742072,2129.7,2129.4,0.001]
[1772694967286,0.87742072,2129.7,2129.2,0.001]
[1772694968103,0.87742072,2129.5,2129.2,0.001]
[1772694970404,0.87742072,2129.4,2129.2,0.001]
[1772694972387,2.0514728,2129.4,2129.2,0.001]
[1772694972800,0.87742072,2129.3,2129.2,0.001]
[1772694973109,0.87742072,2129.3,2129.1,0.001]
[1772694974023,0.87742072,2129.3,2128.8,0.001]
[1772694974324,0.87742072,2129.1,2128.5,1.17553521]
[1772694974488,0.87742072,2129.0,2128.6,0.001]
[1772694974884,1.17425596,2129.1,2128.6,0.001]
[1772694974885,3.77957609,2129.2,2128.7,0.001]
[1772694975097,0.87742072,2129.1,2128.7,0.001]
[1772694975298,0.87742072,2129.1,2128.8,0.001]
[1772694975499,2.05153243,2129.3,2129.0,0.001]
[1772694975699,0.87742072,2129.3,2129.0,0.001]
[1772694976420,2.0515192,2129.3,2129.0,0.001]
[1772694976621,0.87742072,2129.3,2129.0,0.002]
[1772694978514,0.87742072,2129.3,2129.1,0.001]
[1772694979112,2.55686716,2129.5,2129.1,0.001]
[1772694979321,3.73085735,2129.5,2129.1,0.001]
[1772694980521,2.00194804,2129.4,2129.1,0.001]
[1772694980730,0.82786716,2129.4,2129.1,0.001]
[1772694980929,2.00184007,2129.6,2129.2,0.001]
[1772694981120,1.729,2129.5,2129.2,0.001]
[1772694981631,2.55686716,2129.5,2129.2,0.001]
[1772694982331,0.82786716,2129.4,2129.0,0.001]
[1772694982530,0.82786716,2129.2,2128.8,0.001]
[1772694982731,0.82786716,2129.2,2128.9,0.001]
[1772694985736,2.00203316,2129.2,2128.9,0.001]
[1772694985929,2.00203316,2129.2,2128.8,0.001]
[1772694985930,1.73,2129.2,2129.0,0.001]
[1772694986233,1.73,2129.2,2128.9,0.001]
[1772694987439,1.73,2129.2,2129.1,0.001]
[1772694987618,1.732,2129.2,2129.1,0.001]
[1772694988846,3.74708086,2129.2,2129.1,0.001]
[1772694989348,0.84093095,2129.1,2128.9,0.001]
[1772694989523,0.84093095,2129.1,2129.0,0.001]
[1772694989725,2.01708086,2129.2,2129.0,0.001]
[1772694991128,0.84093095,2129.1,2129.0,0.001]
[1772694991324,0.84093095,2129.1,2128.8,0.001]
[1772694992022,0.84093095,2129.1,2128.6,0.001]
[1772694992553,1.17431537,2128.9,2128.6,0.001]
[1772694992731,2.01524632,2128.9,2128.6,0.001]
[1772694993262,0.84093095,2128.8,2128.6,0.001]
[1772694994726,1.1744257,2128.7,2128.6,0.001]
[1772694996253,2.01534518,2128.8,2128.6,0.001]
[1772694999960,0.84093095,2128.8,2128.6,0.001]
[1772695000141,2.01530561,2128.8,2128.6,0.001]
[1772695002754,0.84093095,2128.7,2128.3,0.001]
[1772695002946,1.17437466,2128.8,2128.3,0.001]
[1772695002947,0.84093095,2128.5,2128.3,0.001]
[1772695003454,0.84293095,2128.9,2128.4,0.87503569]
[1772695003653,0.002,2128.9,2128.4,0.87503569]
[1772695004029,0.84293095,2128.9,2128.4,0.87503569]
[1772695005049,0.84293095,2128.9,2128.5,2.04957174]
[1772695005426,2.0172525,2128.9,2128.5,2.04957174]
[1772695006161,2.01724855,2128.9,2128.5,0.87503569]
[1772695006656,1.1763176,2128.9,2128.5,0.87503569]
[1772695006960,0.84093095,2128.8,2128.5,0.87503569]
[1772695007354,0.84093095,2128.8,2128.5,2.04956792]
[1772695008457,0.84093095,2128.8,2128.5,0.87503569]
[1772695008644,0.84093095,2128.8,2128.5,2.04957112]
[1772695010156,0.84093095,2128.8,2128.5,1.17453543]
[1772695010755,0.87746978,2128.7,2128.3,0.001]
[1772695010961,0.87746978,2128.7,2128.3,1.17563953]
[1772695011268,0.87746978,2128.7,2128.3,2.00102487]
[1772695011453,2.05190703,2128.7,2128.3,2.00102487]
[1772695011757,2.05190703,2128.7,2128.3,0.82638534]
[1772695011758,0.87746978,2128.6,2128.3,0.82638534]
[1772695011931,0.87746978,2128.6,2128.3,0.001]
[1772695012334,0.87746978,2128.4,2128.1,0.001]
[1772695012959,2.61546978,2128.5,2128.1,2.0011398]
[1772695013133,0.87746978,2128.4,2128.1,0.82638534]
[1772695013331,0.87746978,2128.4,2128.1,1.17575615]
[1772695013528,2.05206418,2128.4,2128.1,0.001]
[1772695013735,0.87746978,2128.3,2128.1,0.001]
[1772695014290,7.23019016,2128.6,2128.2,0.82538534]
[1772695014291,2.61546978,2128.6,2128.2,0.82538534]
[1772695014757,0.87746978,2128.5,2128.1,0.001]
[1772695015756,0.87746978,2128.4,2128.1,0.001]
[1772695016138,0.87746978,2128.5,2128.1,0.82638534]
[1772695016445,0.002,2128.7,2128.1,0.82638534]
[1772695017752,0.002,2128.7,2128.3,0.82538534]
[1772695019747,0.002,2128.9,2128.5,0.82538534]
[1772695019959,0.002,2129.1,2128.5,0.82538534]
[1772695021280,2.0536825,2129.1,2128.5,0.82538534]
[1772695021435,0.87746978,2129.0,2128.5,0.82538534]
[1772695023745,0.87746978,2129.0,2128.6,1.99986621]
[1772695024064,0.87746978,2129.0,2128.6,0.82538534]
[1772695024065,0.87746978,2128.9,2128.6,0.82538534]
[1772695024259,0.87746978,2128.9,2128.7,0.001]
[1772695024460,0.002,2128.8,2128.7,0.001]
[1772695025764,0.87946978,2128.8,2128.7,0.001]
[1772695026569,0.87946978,2128.8,2128.3,4.69851733]
[1772695026570,0.87746978,2128.7,2128.3,2.00002575]
[1772695028280,0.87746978,2128.7,2128.4,0.82538534]
[1772695029975,0.87746978,2128.7,2128.4,1.99994323]
[1772695030362,0.87746978,2128.7,2128.3,1.17460237]
[1772695031293,0.87746978,2128.7,2128.4,0.82538534]
[1772695031576,0.002,2128.8,2128.4,0.82538534]
[1772695031968,0.002,2128.8,2128.5,1.17453605]
[1772695032173,0.002,2128.8,2128.6,0.82538534]
[1772695032388,0.002,2129.0,2128.6,0.82538534]
[1772695032598,0.87746978,2128.9,2128.2,0.82638534]
[1772695032803,0.87746978,2128.9,2128.3,0.82538534]
[1772695034285,1.17437053,2128.8,2128.4,1.17459124]
[1772695034602,2.05184031,2128.8,2128.4,1.17459124]
[1772695035098,2.05184031,2128.8,2128.3,0.82538534]
[1772695035099,0.87746978,2128.7,2128.3,0.82538534]
[1772695035257,0.87746978,2128.7,2128.2,0.001]
[1772695035447,0.87746978,2128.7,2128.2,1.17569501]
[1772695036076,0.87746978,2128.7,2128.2,0.001]
[1772695036492,0.87746978,2128.5,2128.2,1.17570131]
[1772695036864,0.87746978,2128.5,2128.2,0.001]
[1772695037889,0.87746978,2128.5,2128.3,0.001]
[1772695039510,0.8473532,2128.4,2128.3,0.001]
[1772695041675,2.02194444,2128.4,2128.2,0.001]
[1772695041862,0.8473532,2128.3,2128.0,0.001]
[1772695042294,0.8473532,2128.3,2128.0,1.17580497]
[1772695042481,0.8473532,2128.3,2128.0,0.001]
[1772695042905,0.8473532,2128.3,2128.0,1.17580953]
[1772695043091,0.8473532,2128.3,2128.0,0.001]
[1772695043278,0.8473532,2128.3,2128.0,1.17580635]
[1772695044987,0.8473532,2128.3,2128.0,0.85254288]
[1772695045317,0.8473532,2128.3,2128.0,0.001]
[1772695045318,0.8473532,2128.2,2128.0,0.001]
[1772695045666,4.69819964,2128.5,2128.0,0.001]
[1772695045667,1.17461546,2128.4,2128.0,0.001]
[1772695045994,0.8473532,2128.3,2128.0,0.001]
[1772695046296,0.8473532,2128.3,2128.0,0.85254288]
[1772695047095,0.8473532,2128.3,2127.8,4.70059839]
[1772695047096,0.86260189,2128.2,2127.8,0.001]
[1772695047398,0.86260189,2128.1,2127.8,0.001]
[1772695048501,0.86260189,2128.0,2127.8,0.001]
[1772695050684,0.86260189,2127.9,2127.8,0.001]
[1772695052674,1.17480072,2128.1,2127.8,0.001]
[1772695052675,0.86260189,2128.1,2127.8,0.001]
[1772695052880,1.17474039,2128.2,2127.8,0.001]
[1772695052881,2.59960189,2128.0,2127.8,0.001]
[1772695053390,2.59960189,2128.0,2127.5,2.00773964]
[1772695053391,0.86260189,2127.9,2127.5,2.00773964]
[1772695054811,1.737,2128.0,2127.6,0.83165623]
[1772695055205,2.59960189,2128.0,2127.6,0.83165623]
[1772695056131,0.86260189,2127.9,2127.5,0.001]
[1772695057118,0.86260189,2127.7,2127.5,0.001]
[1772695057836,5.49396615,2128.1,2127.5,0.001]
[1772695057837,0.86260189,2128.3,2127.6,0.83165623]
[1772695058045,0.86260189,2128.1,2127.6,0.83165623]
[1772695058414,2.59960189,2128.1,2127.6,0.83165623]
[1772695058632,1.737,2128.1,2127.6,0.83165623]
[1772695058944,0.86260189,2128.0,2127.6,0.83165623]
[1772695059110,2.03741685,2128.0,2127.6,2.00667476]
[1772695059613,2.03741685,2128.0,2127.6,0.83165623]
[1772695059820,0.86260189,2127.9,2127.6,0.83165623]
[1772695060238,0.86260189,2127.9,2127.6,2.00668322]
[1772695062243,0.86260189,2127.9,2127.8,0.001]
[1772695062924,0.86260189,2127.8,2127.5,0.001]
[1772695063442,0.86260189,2127.7,2127.5,0.001]
[1772695066023,0.86260189,2127.6,2127.5,0.001]
[1772695066760,0.86260189,2127.6,2127.3,0.001]
[1772695068110,2.03765748,2127.6,2127.3,0.001]
[1772695068513,0.86260189,2127.6,2127.3,0.83265623]
[1772695068729,1.17496096,2127.8,2127.3,0.83265623]
[1772695068929,0.84621507,2127.7,2127.3,0.83265623]
[1772695069123,2.58421507,2127.7,2127.3,0.83265623]
[1772695070156,0.84621507,2127.7,2127.3,0.83265623]
[1772695070327,0.84621507,2127.7,2127.3,2.0078322]
[1772695070526,2.0211962,2127.7,2127.3,2.0078322]
[1772695071618,1.17498113,2127.7,2127.3,0.83265623]
[1772695071819,0.84621507,2127.6,2127.3,0.83265623]
[1772695072261,2.0213032,2127.5,2127.3,0.001]
[1772695072921,0.84621507,2127.5,2127.3,0.001]
[1772695073257,2.58521507,2127.7,2127.3,0.85219833]
[1772695073920,3.76019974,2127.7,2127.3,0.85219833]
[1772695074131,0.84621507,2127.6,2127.3,0.85219833]
[1772695074847,0.84621507,2127.6,2127.5,0.001]
[1772695075226,1.17698561,2127.7,2127.5,0.001]
[1772695075743,2.02320068,2127.7,2127.5,0.001]
[1772695079135,0.84621507,2127.6,2127.3,0.001]
[1772695080428,0.84621507,2127.5,2127.3,0.001]
[1772695082853,2.02134234,2127.5,2127.0,0.001]
[1772695083057,0.84621507,2127.4,2127.0,0.001]
[1772695083256,0.84621507,2127.6,2127.0,0.85219833]
[1772695083440,2.58821507,2127.6,2127.0,0.85219833]
[1772695084049,0.84621507,2127.6,2127.0,0.85219833]
[1772695085557,0.002,2127.7,2127.2,0.85119833]
[1772695085756,1.17699339,2127.7,2127.2,0.85119833]
[1772695086158,2.02320846,2127.7,2127.2,0.85119833]
[1772695086549,0.84621507,2127.6,2127.2,0.85119833]
[1772695087550,2.0213032,2127.5,2127.4,0.001]
[1772695087935,2.0233032,2127.5,2127.4,0.001]
[1772695089343,0.84621507,2127.4,2127.1,0.001]
[1772695089743,0.84621507,2127.4,2127.1,0.85219833]
[1772695090258,2.0233032,2127.5,2127.1,0.85219833]
[1772695090673,0.84821507,2127.5,2127.1,0.85219833]
[1772695090969,2.02330469,2127.5,2127.1,0.85219833]
[1772695091871,0.84621507,2127.3,2127.1,0.001]
[1772695094170,2.59121507,2127.3,2127.1,0.001]
[1772695094665,3.76642237,2127.3,2127.1,0.001]
[1772695096266,0.84621507,2127.2,2126.9,0.001]
[1772695097873,0.84621507,2127.2,2126.9,0.85219833]
[1772695098379,2.02150296,2127.2,2126.9,0.85219833]
[1772695099776,0.84621507,2127.2,2126.9,0.85219833]
[1772695099951,3.70106098,2127.3,2126.9,0.85219833]
[1772695100270,3.70106098,2127.3,2127.0,0.78215854]
[1772695100451,3.70106098,2127.3,2127.1,0.001]
[1772695100772,3.70306098,2127.3,2127.1,0.001]
[1772695100980,0.002,2127.3,2127.1,0.78315854]
[1772695101147,0.002,2127.5,2127.1,0.78315854]
[1772695101148,1.748,2127.4,2127.2,0.78215854]
[1772695101352,1.751,2127.5,2127.2,0.78215854]
[1772695101667,1.749,2127.6,2127.2,0.78215854]
[1772695102043,1.17698064,2127.7,2127.2,0.78215854]
[1772695102778,1.17698064,2127.7,2127.3,1.95735714]
[1772695102779,1.95780839,2127.7,2127.3,1.95735714]
[1772695102995,0.78282775,2127.7,2127.4,0.78215854]
[1772695103197,0.002,2127.7,2127.4,0.78215854]
[1772695105051,0.002,2127.7,2127.5,1.95724667]
[1772695105249,0.002,2127.7,2127.6,0.78215854]
[1772695106381,0.002,2127.7,2127.4,1.17510152]
[1772695106682,0.002,2127.7,2127.5,0.78215854]
[1772695108172,0.002,2127.7,2127.5,1.95723988]
[1772695109853,0.002,2128.0,2127.6,0.84170037]
[1772695110051,0.002,2128.0,2127.1,4.70222623]
[1772695110052,0.82146738,2127.9,2127.2,0.84170037]
[1772695110272,0.82146738,2127.9,2127.2,5.54258591]
[1772695110460,0.82146738,2127.9,2127.3,0.84170037]
[1772695111677,0.82146738,2127.8,2127.3,0.84170037]
[1772695112035,0.82146738,2127.6,2127.3,0.84170037]
[1772695112867,0.001,2127.5,2127.3,0.84170037]
[1772695113254,0.001,2127.5,2127.3,2.01689759]
[1772695114349,0.001,2127.5,2127.4,0.84170037]
[1772695116176,0.001,2127.5,2127.3,0.84170037]
[1772695116380,0.001,2127.5,2127.4,0.84170037]
[1772695118191,0.002,2128.0,2127.4,0.84170037]
[1772695118355,0.002,2128.0,2127.6,0.84170037]
[1772695119363,0.002,2128.3,2127.6,0.84170037]
[1772695120386,0.002,2128.3,2127.8,0.84170037]
[1772695122001,0.82346738,2128.3,2127.8,0.84170037]
[1772695122161,0.002,2128.3,2127.8,0.84170037]
[1772695122657,0.002,2128.3,2128.0,0.84170037]
[1772695124075,0.002,2128.3,2127.4,0.84170037]
[1772695124076,0.82346738,2128.3,2127.4,0.84170037]
[1772695124517,0.82346738,2128.3,2127.6,0.84170037]
[1772695124707,0.82346738,2128.3,2127.7,1.17497767]
[1772695124708,0.002,2128.1,2127.7,1.17497767]
[1772695124896,0.82346738,2128.1,2127.7,2.01667804]
[1772695125270,0.82346738,2128.1,2127.7,1.17497767]
[1772695125498,0.82346738,2128.1,2127.8,0.84170037]
[1772695125690,0.002,2128.1,2127.8,0.84170037]
[1772695125893,0.82346738,2128.1,2127.6,2.01670043]
[1772695126203,0.82346738,2128.1,2127.7,0.84170037]
[1772695126591,0.002,2128.1,2127.7,0.84170037]
[1772695126807,0.002,2128.1,2127.9,0.84170037]
[1772695128683,0.002,2128.1,2127.8,1.17492245]
[1772695129203,0.002,2128.1,2127.8,1.95203232]
[1772695130504,0.79890201,2128.1,2127.8,0.77710987]
[1772695130705,0.79890201,2128.1,2127.5,1.95315494]
[1772695130907,0.79690201,2128.0,2127.5,1.95315494]
[1772695131080,0.79690201,2128.0,2127.6,0.77710987]
[1772695132813,0.79690201,2128.0,2127.6,1.95211937]
[1772695133615,0.79690201,2127.9,2127.5,1.17604154]
[1772695134107,0.79690201,2127.9,2127.5,0.001]
[1772695134301,0.79690201,2127.9,2127.5,1.17607985]
[1772695134502,0.79690201,2127.9,2127.5,0.001]
[1772695134690,0.79690201,2127.9,2127.5,1.17608578]
[1772695135013,0.79690201,2127.8,2127.5,0.001]
[1772695136290,0.79690201,2127.8,2127.3,0.001]
[1772695137305,2.92288313,2127.9,2127.3,1.1761986]
[1772695137306,0.79690201,2127.6,2127.3,1.1761986]
[1772695137915,0.79690201,2127.6,2127.5,0.001]
[1772695140495,1.97193491,2127.6,2127.5,0.001]
[1772695142499,0.79690201,2127.5,2127.3,0.001]
[1772695142721,0.79690201,2127.5,2127.1,0.001]
[1772695143393,1.748,2127.4,2127.1,0.001]
[1772695143591,0.79690201,2127.3,2127.1,0.001]
[1772695144620,1.97210456,2127.3,2127.1,0.001]
[1772695144816,1.9721174,2127.3,2127.1,0.001]
[1772695145021,0.79690201,2127.3,2127.1,0.001]
[1772695145614,1.97203961,2127.5,2127.1,0.77810987]
[1772695145797,2.54490201,2127.8,2127.1,0.77810987]
[1772695146332,1.97185651,2127.8,2127.3,0.77710987]
[1772695146507,1.97182696,2127.8,2127.3,0.77710987]
[1772695148434,1.97182696,2127.8,2127.4,0.77710987]
[1772695148728,0.002,2127.9,2127.4,0.77710987]
[1772695148913,1.17686751,2127.9,2127.4,0.77710987]
[1772695150430,0.002,2127.9,2127.4,0.77710987]
[1772695150835,0.002,2127.9,2127.6,0.77710987]
[1772695151029,0.002,2127.7,2127.6,0.77710987]
[1772695151846,0.002,2127.9,2127.6,0.77710987]
[1772695152248,0.79890201,2127.9,2127.6,0.77710987]
[1772695153143,1.97379168,2127.9,2127.6,0.77710987]
[1772695153433,0.79890201,2127.9,2127.6,0.77710987]
[1772695153946,0.002,2127.9,2127.7,0.77710987]
[1772695157468,0.002,2127.9,2127.7,1.95208053]
[1772695157675,0.002,2127.9,2127.8,0.77710987]
[1772695158957,0.002,2127.9,2127.6,1.93007109]
[1772695159674,0.002,2127.9,2127.7,0.75508303]
[1772695162779,0.74663389,2127.9,2127.5,0.75508303]
[1772695162983,0.74663389,2127.9,2127.4,0.75608303]
[1772695163275,0.002,2127.7,2127.4,1.93121959]
[1772695163581,0.002,2127.7,2127.6,0.001]
[1772695167692,0.75498234,2127.7,2127.6,0.001]
[1772695167858,0.75498234,2127.7,2127.4,0.001]
[1772695168058,1.1750329,2127.6,2127.4,0.001]
[1772695169090,1.92801524,2127.6,2127.4,0.001]
[1772695169259,4.70198331,2127.7,2127.4,0.001]
[1772695169260,0.002,2127.7,2127.5,0.77754583]
[1772695170795,0.002,2127.7,2127.6,0.77754583]
[1772695174695,0.75498234,2127.7,2127.4,0.001]
[1772695176186,0.75498234,2127.7,2127.5,0.001]
[1772695176795,1.92999653,2127.7,2127.5,0.001]
[1772695177500,1.17701419,2127.7,2127.5,0.001]
[1772695177701,0.75298234,2127.6,2127.5,0.001]
[1772695178908,1.92801524,2127.6,2127.5,0.001]
[1772695180278,0.75298234,2127.6,2127.5,0.001]
[1772695180992,1.92801524,2127.6,2127.5,0.001]
[1772695182328,0.75298234,2127.6,2127.5,0.001]
[1772695182618,1.92801524,2127.6,2127.5,0.001]
[1772695182790,0.75298234,2127.5,2127.3,0.001]
[1772695183382,1.92807534,2127.5,2127.3,0.001]
[1772695183577,0.75298234,2127.4,2127.1,0.001]
[1772695185308,1.175093,2127.5,2127.1,0.77854583]
[1772695185503,1.92807534,2127.5,2127.1,0.77854583]
[1772695185807,1.175093,2127.5,2127.1,0.77854583]
[1772695185991,0.75298234,2127.4,2127.1,0.77854583]
[1772695186894,0.75298234,2127.4,2127.1,0.001]
[1772695187421,1.1751986,2127.3,2127.1,0.001]
[1772695187603,1.92818094,2127.3,2127.1,0.001]
[1772695189910,0.75298234,2127.3,2127.1,0.001]
[1772695190108,1.92818663,2127.3,2127.1,0.001]
[1772695190718,0.75298234,2127.3,2127.1,0.001]
[1772695190932,1.92818322,2127.3,2127.1,0.001]
[1772695191926,0.70226185,2127.3,2127.1,0.001]
[1772695194044,1.87747287,2127.3,2127.1,0.001]
[1772695194545,1.87938894,2127.5,2127.1,0.74648667]
[1772695194719,1.754,2127.4,2127.1,0.74648667]
[1772695195125,2.45626185,2127.4,2127.1,0.74648667]
[1772695195548,1.754,2127.4,2127.1,0.001]
[1772695195749,0.70226185,2127.3,2126.4,0.74548667]
[1772695196153,1.87749901,2127.3,2126.6,0.74548667]
[1772695197043,0.70226185,2127.2,2126.6,0.74548667]
[1772695197764,0.002,2127.9,2126.4,1.17565041]
[1772695198053,2.24966748,2128.1,2127.0,0.74548667]
[1772695198054,1e-08,2128.1,2127.0,0.74548667]
[1772695198257,2.59366394,2128.7,2127.3,0.76482751]
[1772695198258,0.34599646,2128.7,2127.3,0.76482751]
[1772695198420,0.34599646,2128.7,2127.4,0.76482751]
[1772695198625,0.34599646,2128.7,2127.3,3.34515867]
[1772695198626,1.52044573,2128.7,2127.8,0.76482751]
[1772695198835,1.17651134,2128.6,2127.8,0.76482751]
[1772695199350,0.002,2128.6,2127.8,0.76482751]
[1772695199658,1.17648185,2128.6,2127.8,0.76482751]
[1772695200039,1.2128334,2128.6,2127.8,0.76482751]
[1772695200243,0.03635155,2128.5,2127.8,0.76482751]
[1772695200430,0.03635155,2128.5,2127.8,1.93973567]
[1772695200630,0.03695852,2128.4,2127.8,1.93973567]
[1772695200855,0.03695852,2128.4,2127.9,0.76482751]
[1772695201157,0.001,2128.4,2127.9,0.76482751]
[1772695201728,0.03566723,2128.4,2127.9,0.76482751]
[1772695202124,0.001,2128.4,2127.9,0.76482751]
[1772695202328,0.03338013,2128.3,2127.9,0.76482751]
[1772695202959,0.03338013,2128.3,2127.7,1.93976973]
[1772695203749,0.03338013,2128.3,2127.8,0.76482751]
[1772695204459,1.2080732,2128.3,2127.8,0.76482751]
[1772695204644,0.03081204,2128.2,2127.8,0.76482751]
[1772695204849,0.03081204,2128.2,2127.6,1.93982495]
[1772695205726,0.03081204,2128.2,2127.6,0.76482751]
[1772695206466,1.20300757,2128.1,2127.6,1.9398592]